[Event "Late-Titled-Tuesday-Blitz-December-26-2023"]
[Site "Chess.com"]
[Date "2023.12.26"]
[Round "3"]
[White "CuteSheepCloud"]
[Black "Fan_Of_Chucky"]
[Result "1-0"]
[WhiteElo "2648"]
[BlackElo "2460"]
[TimeControl "180+1"]
[EndTime "14:28:35 PST"]
[Termination "CuteSheepCloud won by resignation"]

1. c4 {[%clk 0:02:59.8]} 1... Nf6 {[%clk 0:02:48.4]} 2. Nc3 {[%clk 0:02:57.8]}
2... c5 {[%clk 0:02:48]} 3. e4 {[%clk 0:02:57.6]} 3... g6 {[%clk 0:02:44.1]} 4.
e5 {[%clk 0:02:57.4]} 4... Nh5 {[%clk 0:02:40.8]} 5. g4 {[%clk 0:02:57.1]} 5...
Ng7 {[%clk 0:02:38.4]} 6. Bg2 {[%clk 0:02:57.6]} 6... Ne6 {[%clk 0:02:38.4]} 7.
Nge2 {[%clk 0:02:55.4]} 7... Nc6 {[%clk 0:02:35.7]} 8. f4 {[%clk 0:02:53.2]}
8... Ned4 {[%clk 0:02:35]} 9. O-O {[%clk 0:02:53.1]} 9... Bg7 {[%clk 0:02:34.8]}
10. Nxd4 {[%clk 0:02:52.5]} 10... Nxd4 {[%clk 0:02:33.7]} 11. d3 {[%clk
0:02:51.4]} 11... d6 {[%clk 0:02:33.5]} 12. exd6 {[%clk 0:02:50.4]} 12... Qxd6
{[%clk 0:02:32.3]} 13. Ne4 {[%clk 0:02:50.7]} 13... Qc7 {[%clk 0:02:30.7]} 14.
f5 {[%clk 0:02:46.3]} 14... O-O {[%clk 0:02:29.3]} 15. f6 {[%clk 0:02:45.9]}
15... exf6 {[%clk 0:02:29.1]} 16. Nxf6+ {[%clk 0:02:46.8]} 16... Bxf6 {[%clk
0:02:29.8]} 17. Rxf6 {[%clk 0:02:47.5]} 17... Qe5 {[%clk 0:02:25.4]} 18. Rf2
{[%clk 0:02:42.6]} 18... Re8 {[%clk 0:02:12.1]} 19. Be4 {[%clk 0:02:21.6]} 19...
Qe6 {[%clk 0:01:19.3]} 20. h3 {[%clk 0:02:13.9]} 20... Bd7 {[%clk 0:01:07.6]}
21. Bg5 {[%clk 0:01:48.6]} 21... Bc6 {[%clk 0:01:02.3]} 22. Bxc6 {[%clk
0:01:45.6]} 22... bxc6 {[%clk 0:00:59.5]} 23. Qd2 {[%clk 0:01:45.6]} 23... f5
{[%clk 0:00:35.6]} 24. gxf5 {[%clk 0:01:34.4]} 24... Nxf5 {[%clk 0:00:36.5]} 25.
Raf1 {[%clk 0:01:33.1]} 25... Rf8 {[%clk 0:00:33.2]} 26. b4 {[%clk 0:01:30]}
26... cxb4 {[%clk 0:00:21.9]} 27. Qxb4 {[%clk 0:01:29.7]} 27... Qe5 {[%clk
0:00:16.3]} 28. Bf4 {[%clk 0:01:28.5]} 28... Qd4 {[%clk 0:00:16.2]} 29. Qd2
{[%clk 0:01:22.5]} 29... Nh4 {[%clk 0:00:12.4]} 30. Kh1 {[%clk 0:01:18.1]} 30...
Rf5 {[%clk 0:00:10.2]} 31. Bg3 {[%clk 0:01:17.6]} 31... Raf8 {[%clk 0:00:04.5]}
32. Qe2 {[%clk 0:01:10.8]} 32... Rxf2 {[%clk 0:00:04.2]} 33. Rxf2 {[%clk
0:00:42.5]} 33... Rxf2 {[%clk 0:00:04.2]} 34. Bxf2 {[%clk 0:00:36.1]} 34... Qd7
{[%clk 0:00:02.7]} 35. Kh2 {[%clk 0:00:32.5]} 35... Nf5 {[%clk 0:00:03]} 36. c5
{[%clk 0:00:28]} 36... Qc7+ {[%clk 0:00:03.3]} 37. Kg2 {[%clk 0:00:27.5]} 37...
Qf4 {[%clk 0:00:03.1]} 38. Qe6+ {[%clk 0:00:27]} 38... Kg7 {[%clk 0:00:03.7]}
39. Qxc6 {[%clk 0:00:27.1]} 39... Qg5+ {[%clk 0:00:03.1]} 40. Kf3 {[%clk
0:00:24.7]} 40... Qc1 {[%clk 0:00:03.2]} 41. Qc7+ {[%clk 0:00:22.9]} 41... Kh6
{[%clk 0:00:03.8]} 42. Qf4+ {[%clk 0:00:22.9]} 42... Qxf4+ {[%clk 0:00:03.1]}
43. Kxf4 {[%clk 0:00:23.8]} 43... Kg7 {[%clk 0:00:03.9]} 44. d4 {[%clk
0:00:22.5]} 44... Kf7 {[%clk 0:00:04.5]} 45. d5 {[%clk 0:00:22.8]} 45... Ke7
{[%clk 0:00:05]} 46. Ke5 {[%clk 0:00:23.2]} 46... Kd7 {[%clk 0:00:05.3]} 47. c6+
{[%clk 0:00:22.5]} 47... Kc7 {[%clk 0:00:05.1]} 48. Bxa7 {[%clk 0:00:23.1]}
48... Nd6 {[%clk 0:00:05]} 49. Bb8+ {[%clk 0:00:22.9]} 1-0

[Event "Late-Titled-Tuesday-Blitz-December-26-2023"]
[Site "Chess.com"]
[Date "2023.12.26"]
[Round "3"]
[White "GMBenjaminBok"]
[Black "KNVB"]
[Result "1-0"]
[WhiteElo "2967"]
[BlackElo "2713"]
[TimeControl "180+1"]
[EndTime "14:28:39 PST"]
[Termination "GMBenjaminBok won by resignation"]

1. d4 {[%clk 0:03:00.9]} 1... Nf6 {[%clk 0:02:48.4]} 2. c4 {[%clk 0:03:00.6]}
2... e6 {[%clk 0:02:47.4]} 3. Nc3 {[%clk 0:03:00.6]} 3... Bb4 {[%clk 0:02:47.3]}
4. Qc2 {[%clk 0:03:00.9]} 4... O-O {[%clk 0:02:42.3]} 5. a3 {[%clk 0:03:00.8]}
5... Bxc3+ {[%clk 0:02:42.4]} 6. Qxc3 {[%clk 0:03:01.7]} 6... b5 {[%clk
0:02:35.4]} 7. cxb5 {[%clk 0:02:58.6]} 7... a6 {[%clk 0:02:32.9]} 8. bxa6 {[%clk
0:02:16.5]} 8... Bxa6 {[%clk 0:02:17.5]} 9. Bg5 {[%clk 0:02:16]} 9... h6 {[%clk
0:01:54.5]} 10. Bh4 {[%clk 0:02:14.1]} 10... c5 {[%clk 0:01:37.1]} 11. dxc5
{[%clk 0:01:55.7]} 11... g5 {[%clk 0:01:36]} 12. Bg3 {[%clk 0:01:54.1]} 12...
Nc6 {[%clk 0:00:53.8]} 13. f3 {[%clk 0:01:53.8]} 13... Nd5 {[%clk 0:00:52.9]}
14. Qd2 {[%clk 0:01:39.5]} 14... Na5 {[%clk 0:00:52.4]} 15. Rd1 {[%clk
0:01:08.2]} 15... Nc4 {[%clk 0:00:40.3]} 16. Qc1 {[%clk 0:00:58.5]} 16... Nce3
{[%clk 0:00:30.4]} 17. Rxd5 {[%clk 0:00:45.5]} 17... Nxd5 {[%clk 0:00:28.9]} 18.
Bd6 {[%clk 0:00:42]} 18... Re8 {[%clk 0:00:25.3]} 19. h4 {[%clk 0:00:36.8]}
19... Qf6 {[%clk 0:00:02.1]} 20. Nh3 {[%clk 0:00:25]} 20... gxh4 {[%clk
0:00:02.2]} 21. e4 {[%clk 0:00:20.6]} 21... Bxf1 {[%clk 0:00:03.1]} 22. Kxf1
{[%clk 0:00:21.4]} 22... Ne7 {[%clk 0:00:02.7]} 23. Nf2 {[%clk 0:00:21]} 23...
Qg5 {[%clk 0:00:02.2]} 24. Bf4 {[%clk 0:00:18.9]} 24... Qh5 {[%clk 0:00:02.2]}
25. Ng4 {[%clk 0:00:18.7]} 25... Kg7 {[%clk 0:00:01.3]} 26. Bxh6+ {[%clk
0:00:17.2]} 26... Kg6 {[%clk 0:00:01.7]} 27. Qc3 {[%clk 0:00:12.8]} 27... e5
{[%clk 0:00:01.4]} 28. Be3 {[%clk 0:00:11]} 28... f6 {[%clk 0:00:01.8]} 29. Bf2
{[%clk 0:00:11.2]} 29... Rh8 {[%clk 0:00:01.3]} 30. Rxh4 {[%clk 0:00:10.5]}
30... Qg5 {[%clk 0:00:02]} 31. Rxh8 {[%clk 0:00:08]} 31... Rxh8 {[%clk
0:00:02.9]} 32. Be3 {[%clk 0:00:08]} 32... Rh1+ {[%clk 0:00:02.9]} 33. Ke2
{[%clk 0:00:07.9]} 33... Qh4 {[%clk 0:00:03.6]} 34. Bf2 {[%clk 0:00:05.7]} 34...
Qg5 {[%clk 0:00:03.3]} 35. Qd3 {[%clk 0:00:05.6]} 35... Nc6 {[%clk 0:00:03.3]}
36. Qxd7 {[%clk 0:00:05.2]} 36... Qc1 {[%clk 0:00:03.7]} 37. Qe8+ {[%clk
0:00:03.8]} 37... Kg7 {[%clk 0:00:03.9]} 38. Qd7+ {[%clk 0:00:04.1]} 38... Kf8
{[%clk 0:00:02.5]} 39. Qd6+ {[%clk 0:00:04]} 39... Ke8 {[%clk 0:00:02.1]} 40.
Nxf6+ {[%clk 0:00:04.1]} 40... Kf7 {[%clk 0:00:02.6]} 41. Qd5+ {[%clk
0:00:04.5]} 41... Kxf6 {[%clk 0:00:02.6]} 42. Qxc6+ {[%clk 0:00:04.8]} 42... Kg5
{[%clk 0:00:02.8]} 43. Be3+ {[%clk 0:00:04.2]} 43... Qxe3+ {[%clk 0:00:02.6]}
44. Kxe3 {[%clk 0:00:05.1]} 1-0

[Event "Late-Titled-Tuesday-Blitz-December-26-2023"]
[Site "Chess.com"]
[Date "2023.12.26"]
[Round "3"]
[White "HanSchut"]
[Black "Aariow"]
[Result "0-1"]
[WhiteElo "2253"]
[BlackElo "2474"]
[TimeControl "180+1"]
[EndTime "14:28:40 PST"]
[Termination "Aariow won on time"]

1. e4 {[%clk 0:02:59.7]} 1... c5 {[%clk 0:03:00]} 2. Nf3 {[%clk 0:02:59.4]} 2...
Nc6 {[%clk 0:03:00.6]} 3. d4 {[%clk 0:02:59.6]} 3... cxd4 {[%clk 0:03:01.5]} 4.
Nxd4 {[%clk 0:03:00.4]} 4... g6 {[%clk 0:03:02.4]} 5. c4 {[%clk 0:03:00.4]} 5...
Bg7 {[%clk 0:03:02.9]} 6. Be3 {[%clk 0:03:01]} 6... Nf6 {[%clk 0:03:03.7]} 7.
Nc3 {[%clk 0:03:01.4]} 7... O-O {[%clk 0:03:04.5]} 8. Be2 {[%clk 0:03:01.8]}
8... d6 {[%clk 0:03:05.3]} 9. Qd2 {[%clk 0:03:02]} 9... Bd7 {[%clk 0:03:05.2]}
10. f3 {[%clk 0:03:02.5]} 10... Nh5 {[%clk 0:03:03.5]} 11. Rc1 {[%clk
0:03:01.5]} 11... Bxd4 {[%clk 0:02:53.4]} 12. Bxd4 {[%clk 0:03:02.4]} 12... Nxd4
{[%clk 0:02:54.1]} 13. Qxd4 {[%clk 0:03:02.6]} 13... Nf4 {[%clk 0:02:53.5]} 14.
O-O {[%clk 0:02:55.5]} 14... e5 {[%clk 0:02:47.2]} 15. Qxd6 {[%clk 0:02:47.1]}
15... Qg5 {[%clk 0:02:46.6]} 16. g3 {[%clk 0:02:31.9]} 16... Bh3 {[%clk
0:02:39.6]} 17. Kf2 {[%clk 0:01:30.7]} 17... Rfd8 {[%clk 0:01:30.2]} 18. Qc5
{[%clk 0:01:04.8]} 18... Rac8 {[%clk 0:01:11.1]} 19. Qe3 {[%clk 0:01:03.7]}
19... Bxf1 {[%clk 0:01:08.9]} 20. Bxf1 {[%clk 0:01:00.4]} 20... Ne6 {[%clk
0:00:10]} 21. Qxg5 {[%clk 0:01:00.4]} 21... Nxg5 {[%clk 0:00:10.9]} 22. Nd5
{[%clk 0:01:01.1]} 22... Kf8 {[%clk 0:00:10.3]} 23. b3 {[%clk 0:00:54.8]} 23...
Ne6 {[%clk 0:00:10.6]} 24. Bh3 {[%clk 0:00:55.2]} 24... Rd6 {[%clk 0:00:09.3]}
25. f4 {[%clk 0:00:51]} 25... exf4 {[%clk 0:00:08.3]} 26. gxf4 {[%clk
0:00:51.9]} 26... Rcd8 {[%clk 0:00:08.9]} 27. f5 {[%clk 0:00:44]} 27... Nc5
{[%clk 0:00:06.9]} 28. Ke3 {[%clk 0:00:26.6]} 28... Re8 {[%clk 0:00:06.9]} 29.
fxg6 {[%clk 0:00:12.9]} 29... Rxe4+ {[%clk 0:00:05.7]} 30. Kf3 {[%clk
0:00:12.6]} 30... hxg6 {[%clk 0:00:05.3]} 31. b4 {[%clk 0:00:11.7]} 31... Nd3
{[%clk 0:00:05.9]} 32. Kxe4 {[%clk 0:00:11.4]} 32... Nxc1 {[%clk 0:00:06.2]} 33.
Ke5 {[%clk 0:00:12.3]} 33... Ra6 {[%clk 0:00:05.8]} 34. b5 {[%clk 0:00:09.6]}
34... Rxa2 {[%clk 0:00:06]} 35. Kd6 {[%clk 0:00:10.5]} 35... Rxh2 {[%clk
0:00:05.5]} 36. Bc8 {[%clk 0:00:09.9]} 36... b6 {[%clk 0:00:04.5]} 37. Kc7
{[%clk 0:00:08.3]} 37... Ra2 {[%clk 0:00:05.2]} 38. Kb7 {[%clk 0:00:07.9]} 38...
Nb3 {[%clk 0:00:05.7]} 39. Ne7 {[%clk 0:00:07.8]} 39... Kxe7 {[%clk 0:00:05.1]}
0-1

[Event "Late-Titled-Tuesday-Blitz-December-26-2023"]
[Site "Chess.com"]
[Date "2023.12.26"]
[Round "3"]
[White "ExchangeAB"]
[Black "aranibos"]
[Result "1-0"]
[WhiteElo "2501"]
[BlackElo "2159"]
[TimeControl "180+1"]
[EndTime "14:28:41 PST"]
[Termination "ExchangeAB won by resignation"]

1. Nf3 {[%clk 0:03:00.9]} 1... g6 {[%clk 0:02:59.5]} 2. d4 {[%clk 0:02:59.6]}
2... Bg7 {[%clk 0:02:59.6]} 3. c3 {[%clk 0:02:58.5]} 3... d6 {[%clk 0:02:58.7]}
4. g3 {[%clk 0:02:58.2]} 4... b6 {[%clk 0:02:57.9]} 5. Bg2 {[%clk 0:02:58.7]}
5... Bb7 {[%clk 0:02:58]} 6. O-O {[%clk 0:02:59.4]} 6... Nf6 {[%clk 0:02:57.4]}
7. a4 {[%clk 0:02:59.3]} 7... a6 {[%clk 0:02:54.9]} 8. Nbd2 {[%clk 0:02:58.7]}
8... O-O {[%clk 0:02:55.3]} 9. Re1 {[%clk 0:02:58.6]} 9... c5 {[%clk 0:02:54.5]}
10. Nc4 {[%clk 0:02:51.8]} 10... Nbd7 {[%clk 0:02:49.9]} 11. e3 {[%clk
0:02:43.5]} 11... b5 {[%clk 0:02:44.8]} 12. Na3 {[%clk 0:02:42.6]} 12... b4
{[%clk 0:02:41.1]} 13. cxb4 {[%clk 0:02:40.3]} 13... cxb4 {[%clk 0:02:41.5]} 14.
Nc4 {[%clk 0:02:39.8]} 14... Rc8 {[%clk 0:02:38.4]} 15. b3 {[%clk 0:02:37.8]}
15... Nb6 {[%clk 0:02:32.3]} 16. Nfd2 {[%clk 0:02:32.5]} 16... Bxg2 {[%clk
0:02:31.6]} 17. Kxg2 {[%clk 0:02:33.4]} 17... Nfd5 {[%clk 0:02:28.9]} 18. Bb2
{[%clk 0:02:31.9]} 18... Nc3 {[%clk 0:02:26.3]} 19. Qf3 {[%clk 0:02:27.3]} 19...
d5 {[%clk 0:02:02.9]} 20. Nxb6 {[%clk 0:02:26.4]} 20... Qxb6 {[%clk 0:02:02]}
21. Rec1 {[%clk 0:02:26.4]} 21... e6 {[%clk 0:01:54.3]} 22. Nb1 {[%clk
0:02:21.7]} 22... Ne4 {[%clk 0:01:48.3]} 23. Qd1 {[%clk 0:02:14.8]} 23... Rxc1
{[%clk 0:01:45.4]} 24. Qxc1 {[%clk 0:02:13.5]} 24... a5 {[%clk 0:01:41.4]} 25.
f3 {[%clk 0:02:10.9]} 25... Nd6 {[%clk 0:01:39.9]} 26. Nd2 {[%clk 0:02:02.5]}
26... Nf5 {[%clk 0:01:35]} 27. Kf2 {[%clk 0:01:58.5]} 27... Qb8 {[%clk
0:01:21.5]} 28. Qf1 {[%clk 0:01:53.3]} 28... Rc8 {[%clk 0:01:20.9]} 29. Rc1
{[%clk 0:01:53.1]} 29... h5 {[%clk 0:01:13.3]} 30. Rxc8+ {[%clk 0:01:51.6]}
30... Qxc8 {[%clk 0:01:13.4]} 31. Qc1 {[%clk 0:01:52.3]} 31... Qxc1 {[%clk
0:01:06.7]} 32. Bxc1 {[%clk 0:01:53.2]} 32... e5 {[%clk 0:00:52]} 33. dxe5
{[%clk 0:01:48.5]} 33... Bxe5 {[%clk 0:00:52.5]} 34. Nf1 {[%clk 0:01:42.9]}
34... Nd6 {[%clk 0:00:39.9]} 35. Ke2 {[%clk 0:01:38.2]} 35... f5 {[%clk
0:00:36.7]} 36. Kd3 {[%clk 0:01:36.4]} 36... Kf7 {[%clk 0:00:36.8]} 37. Kc2
{[%clk 0:01:27.4]} 37... Ke6 {[%clk 0:00:33.5]} 38. Bb2 {[%clk 0:01:27.1]} 38...
Bxb2 {[%clk 0:00:33]} 39. Kxb2 {[%clk 0:01:28]} 39... d4 {[%clk 0:00:27.5]} 40.
Kc2 {[%clk 0:01:19.8]} 40... dxe3 {[%clk 0:00:24.9]} 41. Nxe3 {[%clk 0:01:20.7]}
41... Ke5 {[%clk 0:00:23]} 42. Kd3 {[%clk 0:01:17.8]} 42... f4 {[%clk
0:00:23.3]} 43. Ng2 {[%clk 0:01:07.3]} 43... g5 {[%clk 0:00:21.1]} 44. gxf4+
{[%clk 0:01:00.1]} 44... gxf4 {[%clk 0:00:21.5]} 45. Nh4 {[%clk 0:00:55.5]}
45... Kf6 {[%clk 0:00:21.4]} 46. Kd4 {[%clk 0:00:53.4]} 46... Kg5 {[%clk
0:00:21]} 47. Ng2 {[%clk 0:00:53.1]} 47... Nf5+ {[%clk 0:00:20.5]} 48. Ke4
{[%clk 0:00:52.6]} 48... Nd6+ {[%clk 0:00:18.9]} 49. Ke5 {[%clk 0:00:51.1]}
49... Nf7+ {[%clk 0:00:18.7]} 50. Ke6 {[%clk 0:00:49.1]} 50... Nh6 {[%clk
0:00:18.6]} 51. h4+ {[%clk 0:00:47.5]} 51... Kg6 {[%clk 0:00:17.6]} 52. Nxf4+
{[%clk 0:00:47.7]} 52... Kh7 {[%clk 0:00:17.2]} 53. Nxh5 {[%clk 0:00:47.2]}
53... Ng8 {[%clk 0:00:17.8]} 54. f4 {[%clk 0:00:46]} 54... Kg6 {[%clk
0:00:17.9]} 55. Ng3 {[%clk 0:00:45.7]} 55... Nf6 {[%clk 0:00:17.2]} 56. f5+
{[%clk 0:00:45.2]} 56... Kg7 {[%clk 0:00:17.1]} 57. h5 {[%clk 0:00:44.8]} 57...
Ng4 {[%clk 0:00:14.8]} 58. Ne4 {[%clk 0:00:40]} 1-0

[Event "Late-Titled-Tuesday-Blitz-December-26-2023"]
[Site "Chess.com"]
[Date "2023.12.26"]
[Round "3"]
[White "MightyGMpretender"]
[Black "vladoboch"]
[Result "1-0"]
[WhiteElo "2761"]
[BlackElo "2411"]
[TimeControl "180+1"]
[EndTime "14:28:43 PST"]
[Termination "MightyGMpretender won by resignation"]

1. Nf3 {[%clk 0:03:00.9]} 1... c5 {[%clk 0:02:58.1]} 2. b3 {[%clk 0:03:01.8]}
2... Nc6 {[%clk 0:02:57.4]} 3. Bb2 {[%clk 0:03:02.3]} 3... d6 {[%clk 0:02:53.5]}
4. d4 {[%clk 0:03:01.9]} 4... cxd4 {[%clk 0:02:50.4]} 5. Nxd4 {[%clk 0:03:02.8]}
5... Bd7 {[%clk 0:02:48.6]} 6. e4 {[%clk 0:03:00.9]} 6... Nf6 {[%clk 0:02:43.1]}
7. Bd3 {[%clk 0:03:01.3]} 7... e5 {[%clk 0:02:26.9]} 8. Nxc6 {[%clk 0:03:01]}
8... Bxc6 {[%clk 0:02:26]} 9. Qe2 {[%clk 0:03:00.7]} 9... Be7 {[%clk 0:02:24]}
10. c4 {[%clk 0:03:00.7]} 10... O-O {[%clk 0:02:21.5]} 11. Nc3 {[%clk
0:03:01.4]} 11... Qd7 {[%clk 0:02:09.4]} 12. O-O {[%clk 0:03:01.5]} 12... Bd8
{[%clk 0:02:09.3]} 13. Rad1 {[%clk 0:02:59]} 13... Bb6 {[%clk 0:02:03]} 14. Kh1
{[%clk 0:02:54]} 14... Rad8 {[%clk 0:01:55.1]} 15. Bc2 {[%clk 0:02:52.4]} 15...
Qg4 {[%clk 0:01:53.2]} 16. Qxg4 {[%clk 0:02:36.2]} 16... Nxg4 {[%clk 0:01:53.1]}
17. Rd2 {[%clk 0:02:36.9]} 17... Bd4 {[%clk 0:01:43.2]} 18. h3 {[%clk 0:02:32]}
18... Nf6 {[%clk 0:01:40.9]} 19. Re1 {[%clk 0:02:25.3]} 19... Nh5 {[%clk
0:01:35]} 20. Nd1 {[%clk 0:02:20.2]} 20... Bc5 {[%clk 0:01:28.1]} 21. Ne3 {[%clk
0:02:16.1]} 21... Bb4 {[%clk 0:01:27.6]} 22. Red1 {[%clk 0:02:16.6]} 22... Bxd2
{[%clk 0:01:27.6]} 23. Rxd2 {[%clk 0:02:17.5]} 23... Nf6 {[%clk 0:01:25.2]} 24.
f3 {[%clk 0:02:17.2]} 24... Nh5 {[%clk 0:01:22.6]} 25. Ba3 {[%clk 0:02:13.3]}
25... Rd7 {[%clk 0:01:16.1]} 26. Bxd6 {[%clk 0:02:02.5]} 26... Rfd8 {[%clk
0:01:13.4]} 27. c5 {[%clk 0:02:03]} 27... b6 {[%clk 0:01:01.5]} 28. b4 {[%clk
0:02:02.4]} 28... bxc5 {[%clk 0:01:00.9]} 29. bxc5 {[%clk 0:02:03.3]} 29... Nf4
{[%clk 0:00:55.5]} 30. Bb3 {[%clk 0:02:01.1]} 30... Ne6 {[%clk 0:00:37.4]} 31.
Bd5 {[%clk 0:01:22.4]} 31... Rxd6 {[%clk 0:00:15.9]} 32. cxd6 {[%clk 0:01:22.1]}
32... Rxd6 {[%clk 0:00:16.8]} 33. Nf5 {[%clk 0:01:22.7]} 33... Rd7 {[%clk
0:00:12.2]} 34. Rc2 {[%clk 0:01:19.2]} 34... Bxd5 {[%clk 0:00:09.7]} 35. exd5
{[%clk 0:01:19.7]} 35... Nf8 {[%clk 0:00:08.3]} 36. Rc5 {[%clk 0:00:45.5]} 36...
g6 {[%clk 0:00:08.6]} 37. Ne3 {[%clk 0:00:46.1]} 37... Kg7 {[%clk 0:00:09]} 38.
Nc4 {[%clk 0:00:46.4]} 38... f6 {[%clk 0:00:07.1]} 39. Kg1 {[%clk 0:00:45.1]}
39... g5 {[%clk 0:00:06.7]} 40. Kf2 {[%clk 0:00:44.7]} 40... Ng6 {[%clk
0:00:07]} 41. g3 {[%clk 0:00:42.7]} 41... Ne7 {[%clk 0:00:07]} 42. d6 {[%clk
0:00:41]} 42... Nf5 {[%clk 0:00:07.1]} 43. Rc7 {[%clk 0:00:40.1]} 43... Rxc7
{[%clk 0:00:05.9]} 44. dxc7 {[%clk 0:00:40.4]} 44... Ne7 {[%clk 0:00:06.4]} 45.
Nd6 {[%clk 0:00:40.4]} 45... Kg6 {[%clk 0:00:05.8]} 46. g4 {[%clk 0:00:39.1]}
46... a6 {[%clk 0:00:05.2]} 47. a4 {[%clk 0:00:38]} 47... h5 {[%clk 0:00:05]}
48. Ke2 {[%clk 0:00:34.7]} 48... hxg4 {[%clk 0:00:04.9]} 49. hxg4 {[%clk
0:00:34.9]} 49... f5 {[%clk 0:00:04.7]} 50. gxf5+ {[%clk 0:00:33.7]} 50... Kf6
{[%clk 0:00:05.4]} 51. a5 {[%clk 0:00:33.4]} 51... e4 {[%clk 0:00:03.2]} 52.
fxe4 {[%clk 0:00:33.3]} 52... Ke5 {[%clk 0:00:03.7]} 53. c8=Q {[%clk 0:00:34]}
53... Nxc8 {[%clk 0:00:04]} 54. Nxc8 {[%clk 0:00:34.7]} 54... Kxe4 {[%clk
0:00:04.8]} 55. f6 {[%clk 0:00:35.2]} 1-0

[Event "Late-Titled-Tuesday-Blitz-December-26-2023"]
[Site "Chess.com"]
[Date "2023.12.26"]
[Round "3"]
[White "dosto07"]
[Black "js20000"]
[Result "1-0"]
[WhiteElo "2537"]
[BlackElo "2784"]
[TimeControl "180+1"]
[EndTime "14:28:43 PST"]
[Termination "dosto07 won by checkmate"]

1. e4 {[%clk 0:03:00.9]} 1... Nc6 {[%clk 0:03:00.2]} 2. Nf3 {[%clk 0:03:00.1]}
2... e6 {[%clk 0:03:00.7]} 3. d4 {[%clk 0:02:58.1]} 3... d5 {[%clk 0:03:01.2]}
4. Nbd2 {[%clk 0:02:49.5]} 4... Nf6 {[%clk 0:02:59.5]} 5. e5 {[%clk 0:02:49.6]}
5... Nd7 {[%clk 0:02:59.7]} 6. Be2 {[%clk 0:02:50]} 6... f6 {[%clk 0:03:00.2]}
7. exf6 {[%clk 0:02:50.5]} 7... Nxf6 {[%clk 0:03:00.3]} 8. Nf1 {[%clk
0:02:51.1]} 8... Bd6 {[%clk 0:02:58.9]} 9. Ne3 {[%clk 0:02:51]} 9... O-O {[%clk
0:02:57]} 10. O-O {[%clk 0:02:51.2]} 10... e5 {[%clk 0:02:56.8]} 11. dxe5 {[%clk
0:02:50.7]} 11... Nxe5 {[%clk 0:02:56.9]} 12. Nxd5 {[%clk 0:02:44.4]} 12... Nfg4
{[%clk 0:02:39.4]} 13. Nxe5 {[%clk 0:02:37.6]} 13... Bxe5 {[%clk 0:02:26.4]} 14.
Bxg4 {[%clk 0:02:29.8]} 14... Bxg4 {[%clk 0:02:24]} 15. Qxg4 {[%clk 0:02:29.5]}
15... Qxd5 {[%clk 0:02:24.4]} 16. Rd1 {[%clk 0:02:07.5]} 16... Qf7 {[%clk
0:02:02.1]} 17. Be3 {[%clk 0:02:07.1]} 17... Bxb2 {[%clk 0:02:01.5]} 18. Rab1
{[%clk 0:02:03.6]} 18... Qxa2 {[%clk 0:02:00]} 19. Rxb2 {[%clk 0:01:56.4]} 19...
Qxb2 {[%clk 0:01:44.8]} 20. Bd4 {[%clk 0:01:56.3]} 20... Qxd4 {[%clk 0:01:45.4]}
21. Rxd4 {[%clk 0:01:52.7]} 21... Rf7 {[%clk 0:01:40.4]} 22. h4 {[%clk
0:01:41.8]} 22... a5 {[%clk 0:01:39.8]} 23. Qg5 {[%clk 0:01:34]} 23... h6 {[%clk
0:01:28.3]} 24. Rd8+ {[%clk 0:01:22.8]} 24... Kh7 {[%clk 0:01:27.3]} 25. Qd5
{[%clk 0:01:22.9]} 25... Rxd8 {[%clk 0:01:26.5]} 26. Qxf7 {[%clk 0:01:17.4]}
26... a4 {[%clk 0:01:23.6]} 27. Qxc7 {[%clk 0:01:11.8]} 27... Rd1+ {[%clk
0:01:15.8]} 28. Kh2 {[%clk 0:01:11.7]} 28... a3 {[%clk 0:01:15.8]} 29. Qa5
{[%clk 0:01:05.7]} 29... Ra1 {[%clk 0:01:15.1]} 30. Qc3 {[%clk 0:01:04.1]} 30...
Ra2 {[%clk 0:01:15.4]} 31. h5 {[%clk 0:01:01.3]} 31... b6 {[%clk 0:01:13.6]} 32.
Qb3 {[%clk 0:00:59.9]} 32... Ra1 {[%clk 0:01:13.4]} 33. Qxb6 {[%clk 0:00:58.9]}
33... Kh8 {[%clk 0:00:59.5]} 34. Qb8+ {[%clk 0:00:50]} 34... Kh7 {[%clk
0:00:59.4]} 35. Qb3 {[%clk 0:00:46.8]} 35... Kh8 {[%clk 0:00:59.5]} 36. c4
{[%clk 0:00:46.6]} 36... Rc1 {[%clk 0:00:56.3]} 37. Qxa3 {[%clk 0:00:44.2]}
37... Rxc4 {[%clk 0:00:56.1]} 38. Qa8+ {[%clk 0:00:41.5]} 38... Kh7 {[%clk
0:00:56.1]} 39. g3 {[%clk 0:00:40.7]} 39... Rg4 {[%clk 0:00:50.6]} 40. Qf3
{[%clk 0:00:39.4]} 40... Rg5 {[%clk 0:00:50.7]} 41. Kh3 {[%clk 0:00:38.1]} 41...
Kh8 {[%clk 0:00:47.9]} 42. Qa8+ {[%clk 0:00:35.7]} 42... Kh7 {[%clk 0:00:48.1]}
43. Qe4+ {[%clk 0:00:36.1]} 43... Kh8 {[%clk 0:00:48.2]} 44. g4 {[%clk
0:00:36.7]} 44... Ra5 {[%clk 0:00:46.4]} 45. f4 {[%clk 0:00:34.8]} 45... Ra3+
{[%clk 0:00:45.3]} 46. Kh4 {[%clk 0:00:34.9]} 46... Ra6 {[%clk 0:00:44.9]} 47.
Qe8+ {[%clk 0:00:33.7]} 47... Kh7 {[%clk 0:00:45.1]} 48. Qe4+ {[%clk 0:00:32]}
48... Kh8 {[%clk 0:00:45.2]} 49. Qc4 {[%clk 0:00:28.3]} 49... Rb6 {[%clk
0:00:42.3]} 50. g5 {[%clk 0:00:24.1]} 50... Rb8 {[%clk 0:00:36.4]} 51. Kg4
{[%clk 0:00:23.4]} 51... Rf8 {[%clk 0:00:35.9]} 52. Qd4 {[%clk 0:00:21.7]} 52...
Kh7 {[%clk 0:00:35]} 53. Qe4+ {[%clk 0:00:21.8]} 53... Kh8 {[%clk 0:00:34.9]}
54. Qg6 {[%clk 0:00:22.5]} 54... hxg5 {[%clk 0:00:30.2]} 55. fxg5 {[%clk
0:00:22.8]} 55... Ra8 {[%clk 0:00:30]} 56. h6 {[%clk 0:00:23.2]} 56... gxh6
{[%clk 0:00:27.7]} 57. Qxh6+ {[%clk 0:00:20.2]} 57... Kg8 {[%clk 0:00:28.1]} 58.
Qe6+ {[%clk 0:00:20.3]} 58... Kh8 {[%clk 0:00:27.4]} 59. Qe5+ {[%clk 0:00:20.4]}
59... Kg8 {[%clk 0:00:27]} 60. Qd5+ {[%clk 0:00:20.4]} 60... Kh7 {[%clk
0:00:27.1]} 61. Qxa8 {[%clk 0:00:19.7]} 61... Kg6 {[%clk 0:00:28]} 62. Qg8#
{[%clk 0:00:18.7]} 1-0